bitfinex-derivatives/quotes_ETHF0:USTF0_20250224
["timestamp","ask_amount","ask_price","bid_price","bid_amount"]
[1740400695399,0.00557911,2690.3,2690.1,3.51296931]
[1740400696007,0.00557911,2690.3,2690.1,3.2078]
[1740400702512,0.00557911,2690.3,2689.9,2.954]
[1740400702707,3.2078,2690.2,2689.5,0.5675]
[1740400702909,1.1567,2690.1,2689.5,0.5675]
[1740400703112,0.5647,2690.0,2689.4,44.0078]
[1740400703313,0.5647,2690.0,2689.4,44.5753]
[1740400703712,0.5647,2690.0,2689.4,44.87645484]
[1740400703913,0.51085318,2690.1,2689.7,3.2078]
[1740400704110,0.00557911,2690.3,2690.0,3.2078]
[1740400708317,0.00557911,2690.3,2690.2,0.74327]
[1740400708716,0.00557911,2690.3,2690.2,1.28617]
[1740400709217,0.00557911,2690.3,2690.2,0.5429]
[1740400711215,0.00557911,2690.3,2690.0,3.2078]
[1740400712121,0.00557911,2690.3,2690.0,3.7622]
[1740400715424,0.00557911,2690.3,2690.0,3.2078]
[1740400715926,0.57467911,2690.3,2690.0,3.2078]
[1740400716128,1.1295,2690.2,2690.0,3.2078]
[1740400716528,1.1295,2690.2,2689.9,3.5106]
[1740400717425,1.1295,2690.2,2689.9,0.5566]
[1740400717625,1.1295,2690.2,2689.7,3.2078]
[1740400717825,1.1295,2690.2,2689.8,0.5579]
[1740400719125,0.00557911,2690.3,2690.0,3.2078]
[1740400720234,0.00557911,2690.3,2690.1,0.5548]
[1740400720429,0.00557911,2690.3,2690.1,1.1239]
[1740400720634,0.00557911,2690.3,2690.2,0.593]
[1740400726537,0.00557911,2690.3,2690.0,3.2078]
[1740400736344,1.1209,2690.9,2690.0,3.2078]
[1740400736547,2.908,2690.8,2690.5,3.2078]
[1740400737048,1.6608,2690.9,2690.6,0.5628]
[1740400737251,1.6608,2690.9,2690.6,1.1369]
[1740400737447,0.00557911,2691.0,2690.6,1.1369]
[1740400737755,0.00557911,2691.0,2690.8,3.2078]
[1740400738849,0.00557911,2691.0,2690.6,1.1369]
[1740400739346,0.00557911,2691.0,2690.8,3.2078]
[1740400741953,0.00557911,2691.0,2690.6,1.1369]
[1740400742146,0.00557911,2691.0,2690.8,3.2078]
[1740400742857,0.00557911,2691.0,2690.6,1.6918]
[1740400747261,9.11e-06,2691.0,2690.8,3.2078]
[1740400751056,0.73526342,2691.6,2690.8,3.2078]
[1740400751261,0.5526,2691.5,2691.1,3.2078]
[1740400751564,0.5526,2691.5,2691.2,1.1324]
[1740400751762,0.5526,2691.5,2691.2,1.6672]
[1740400751957,3.4981,2691.6,2691.2,1.6672]
[1740400752157,0.5911,2691.6,2691.2,1.6672]
[1740400752759,0.5526,2692.0,2691.2,1.6672]
[1740400753057,6.1148,2691.8,2691.2,1.6672]
[1740400753362,6.1148,2691.8,2691.2,1.96592771]
[1740400754863,3.2078,2691.8,2691.2,1.96592771]
[1740400756166,4.0829,2691.9,2691.4,3.2078]
[1740400760367,0.73376309,2691.8,2691.4,3.2078]
[1740400761663,0.73376309,2691.8,2691.0,3.2078]
[1740400761664,3.94156309,2691.8,2691.0,3.2078]
[1740400762359,3.94156309,2691.8,2691.1,0.558]
[1740400764064,3.94156309,2691.8,2691.0,3.2078]
[1740400764365,3.94156309,2691.8,2691.1,0.5451]
[1740400765064,3.94156309,2691.8,2691.1,1.095]
[1740400765268,3.94156309,2691.8,2691.3,3.2078]
[1740400765468,3.64076309,2691.8,2691.6,3.2078]
[1740400765766,3.64076309,2691.8,2691.7,0.5451]
[1740400766268,2.907,2691.8,2691.7,0.5451]
[1740400767265,0.5911,2691.9,2691.7,0.5451]
[1740400767460,0.556,2692.3,2691.7,0.5451]
[1740400767659,4.0248,2692.3,2691.9,3.2078]
[1740400767859,0.73501227,2692.3,2692.2,3.2078]
[1740400768370,2.27e-06,2692.8,2692.2,3.2078]
[1740400768571,2.27e-06,2692.8,2692.7,0.74258]
[1740400768770,20.35700924,2692.9,2692.5,3.2078]
[1740400768963,20.35700924,2692.9,2692.8,0.74255]
[1740400769570,20.35700924,2692.9,2692.5,3.7735]
[1740400769964,20.35700924,2692.9,2692.8,3.2078]
[1740400770164,9.77244774,2692.9,2692.8,3.95035]
[1740400771073,3.7632,2693.5,2693.0,0.74247]
[1740400771373,0.74245,2693.2,2693.0,0.74247]
[1740400771671,2.913,2693.4,2692.8,3.2078]
[1740400771866,0.74246,2693.2,2693.0,0.74249]
[1740400772067,0.74246,2693.2,2692.8,3.2078]
[1740400772266,0.74246,2693.2,2692.9,0.74251]
[1740400772468,0.561,2693.2,2692.8,3.2078]
[1740400772661,0.74251,2693.0,2692.7,0.74257]
[1740400772869,2.912,2693.0,2692.5,0.5657]
[1740400773068,0.5356,2692.9,2692.3,1.1503]
[1740400773270,0.5356,2692.9,2692.3,0.5701]
[1740400773473,3.7463,2692.8,2692.4,0.74266]
[1740400773672,0.74267,2692.4,2692.2,0.74271]
[1740400774371,1.27827,2692.4,2692.2,0.74271]
[1740400774765,1.27827,2692.4,2692.2,0.7427]
[1740400775165,0.5356,2692.4,2692.0,0.00557911]
[1740400775370,0.74275,2692.1,2692.0,0.00557911]
[1740400775565,2.915,2692.1,2692.0,0.00557911]
[1740400775770,2.915,2692.1,2692.0,0.74834911]
[1740400777068,3.65775,2692.1,2692.0,0.74834911]
[1740400777376,3.65775,2692.1,2692.0,0.00557911]
[1740400778972,4.3740291,2692.1,2692.0,0.00557911]
[1740400780668,4.3710291,2692.1,2692.0,0.00557911]
[1740400780868,1.4590291,2692.1,2692.0,0.00557911]
[1740400781070,4.3700291,2692.1,2692.0,0.00557911]
[1740400781470,0.74275,2692.1,2692.0,0.00557911]
[1740400781671,3.65375,2692.1,2692.0,0.00557911]
[1740400782269,2.911,2692.1,2692.0,0.00557911]
[1740400782470,3.2078,2692.2,2692.0,0.00557911]
[1740400782670,2.909,2692.1,2692.0,0.00557911]
[1740400783973,2.96695464,2692.1,2692.0,0.00557911]
[1740400784481,2.96695464,2692.1,2691.2,40.8]
[1740400784676,3.2078,2691.9,2691.2,40.8]
[1740400784973,0.58,2691.8,2691.2,40.8]
[1740400785177,2.911,2691.7,2691.2,40.8]
[1740400785381,3.2078,2691.6,2691.2,40.8]
[1740400785572,3.2078,2691.6,2691.1,1.1253]
[1740400785876,3.2078,2691.6,2691.1,0.58377911]
[1740400787676,3.2078,2691.6,2691.1,1.13087911]
[1740400788471,3.2078,2691.6,2691.1,1.70557911]
[1740400789772,3.2078,2691.6,2691.1,0.00557911]
[1740400796486,2.906,2691.5,2691.1,0.00557911]
[1740400800089,3.2078,2691.6,2691.1,0.00557911]
[1740400800292,2.907,2691.5,2691.1,0.00557911]
[1740400807295,3.62665674,2691.5,2691.1,0.00557911]
[1740400809993,3.2078,2691.2,2690.6,3.2078]
[1740400810192,4.5923,2691.1,2690.6,3.2078]
[1740400810898,0.72019417,2691.0,2690.6,3.2078]
[1740400811198,0.72019417,2691.0,2690.6,3.21337911]
[1740400812098,3.2078,2690.9,2690.6,0.00557911]
[1740400812594,0.05898942,2690.8,2690.6,0.00557911]
[1740400812798,2.906,2690.7,2690.6,0.00557911]
[1740400813000,3.51998942,2690.7,2689.7,3.26670894]
[1740400813195,3.2078,2690.4,2689.8,40.8]
[1740400813398,4.2595436,2690.3,2690.1,0.74329]
[1740400813701,3.4573,2690.3,2690.1,0.74329]
[1740400813891,4.20055,2690.3,2690.1,0.74329]
[1740400814087,3.4573,2690.3,2689.9,0.00557911]
[1740400814295,0.74328,2690.2,2690.0,0.74332]
[1740400814505,3.4573,2690.3,2689.9,0.00557911]
[1740400814992,0.74328,2690.2,2690.0,0.74332]
[1740400815302,0.74332,2690.1,2689.9,0.00557911]
[1740400815695,0.74332,2690.1,2689.9,0.74891911]
[1740400815902,0.74328,2690.2,2690.0,0.74331]
[1740400816095,0.5643,2690.2,2689.9,0.00557911]
[1740400816598,1.30757,2690.2,2690.0,0.74331]
[1740400816800,0.5643,2690.2,2690.1,0.7433]
[1740400817297,0.62325874,2690.2,2689.9,0.00557911]
[1740400817497,0.74331,2690.1,2689.9,0.74891911]
[1740400817696,0.5643,2690.2,2689.9,0.00557911]
[1740400817697,0.74333,2690.0,2689.9,0.00557911]
[1740400818091,0.80228358,2690.0,2689.9,0.00557911]
[1740400821202,0.05894706,2690.0,2689.9,0.00557911]
[1740400822897,0.05895484,2690.0,2689.9,0.00557911]
[1740400823103,0.65045484,2690.0,2689.9,0.00557911]
[1740400825104,6.65045484,2690.0,2689.1,3.2078]
[1740400825306,3.2078,2689.8,2689.2,1.1563]
[1740400825506,3.2078,2689.8,2689.2,1.7123]
[1740400826104,3.2078,2689.8,2689.2,1.71787911]
[1740400826911,0.5763,2689.7,2689.2,1.71787911]
[1740400827912,0.5763,2689.7,2689.2,1.16187911]
[1740400828313,0.5694,2689.6,2689.2,1.16187911]
[1740400828517,2.908,2689.5,2689.2,1.16187911]
[1740400828812,3.2078,2689.8,2689.3,3.2078]
[1740400829012,2.908,2689.7,2689.3,3.2078]
[1740400829530,2.908,2689.6,2689.3,3.2078]
[1740400829720,6.1948,2690.4,2689.3,3.2078]
[1740400829922,0.05895301,2690.3,2690.2,3.2078]
[1740400830122,2.908,2690.4,2690.3,1.91494]
[1740400837128,2.908,2690.4,2690.3,1.1717]
[1740400837726,0.00557911,2690.5,2690.3,1.1717]
[1740400838123,0.00557911,2690.5,2690.4,3.2078]
[1740400838531,9.11e-06,2690.5,2690.4,3.2078]
[1740400850929,9.11e-06,2690.5,2690.4,6.1148]
[1740400852733,9.11e-06,2690.5,2690.4,15.0688]
[1740400856434,3.4977,2691.4,2690.4,12.1148]
[1740400856632,0.5907,2691.4,2691.0,3.2078]
[1740400856831,0.5907,2691.4,2691.3,3.2078]
[1740400857333,3.2078,2692.2,2691.3,3.2078]
[1740400857538,0.6013585,2692.1,2691.6,3.2078]
[1740400857739,2.97153677,2692.0,2691.6,3.2078]
[1740400858034,0.5488,2691.9,2691.6,3.2078]
[1740400860738,1.1362,2691.9,2691.6,3.2078]
[1740400862440,0.5488,2691.9,2691.6,3.2078]
[1740400862633,0.00557911,2692.0,2691.6,3.7556]
[1740400862832,9.11e-06,2692.0,2691.9,3.2078]
[1740400863336,0.71785562,2692.5,2691.9,3.2078]
[1740400863337,0.7067065,2692.5,2692.4,0.74266]
[1740400863643,0.7067065,2692.5,2692.4,3.95046]
[1740400863939,3.4845,2693.1,2692.4,3.95046]
[1740400863940,0.5785,2693.1,2693.0,0.7425]
[1740400865538,0.5785,2693.1,2692.7,3.2078]
[1740400865739,0.5785,2693.1,2692.8,0.74254]
[1740400865933,0.5785,2693.1,2693.0,0.7425]
[1740400866128,1.32098,2693.1,2692.5,3.71318]
[1740400866337,1.32098,2693.1,2693.0,0.7425]
[1740400866535,1.32098,2693.1,2692.7,3.2078]
[1740400866736,0.5785,2693.1,2692.7,3.2078]
[1740400866942,0.5785,2693.1,2692.8,0.74255]
[1740400867244,0.74254,2692.9,2692.7,0.74256]
[1740400867442,0.5785,2693.1,2692.4,3.2078]
[1740400867743,1.27927,2692.8,2692.6,0.74259]
[1740400867944,0.5812,2692.7,2692.6,0.74259]
[1740400868145,1.32379,2692.7,2692.5,0.74261]
[1740400868344,0.5645,2692.6,2692.5,0.74261]
[1740400868533,0.5645,2692.6,2692.2,0.5531]
[1740400869031,0.5645,2692.6,2692.1,3.2078]
[1740400869438,3.2078,2692.4,2691.8,3.7723]
[1740400869639,1.85673,2692.3,2691.8,3.2078]
[1740400869836,0.7428,2691.9,2691.5,3.21337911]
[1740400870038,1.1251,2691.8,2691.5,0.00557911]
[1740400870339,0.74288,2691.6,2691.5,0.00557911]
[1740400872437,0.74305,2691.0,2690.9,40.8]
[1740400872646,0.74305,2691.0,2690.8,0.7431]
[1740400872843,0.74304,2691.1,2690.8,0.74308]
[1740400873037,0.74309,2690.9,2690.7,0.74311]
[1740400873238,0.5418,2691.1,2690.7,40.8]
[1740400873639,1.28483,2691.1,2690.9,0.74308]
[1740400873945,0.5418,2691.1,2690.9,0.74306]
[1740400874244,0.5418,2691.1,2691.0,0.74305]
[1740400876149,0.5417,2691.5,2691.4,0.74294]
[1740400876439,3.4477,2691.5,2690.8,3.2078]
[1740400876641,5.89202,2691.5,2691.0,0.74305]
[1740400876843,0.74301,2691.2,2691.0,0.74305]
[1740400877043,0.74301,2691.2,2691.0,0.74304]
[1740400877235,4.77764,2691.5,2690.9,0.74308]
[1740400877440,0.0589723,2691.4,2690.8,3.2078]
[1740400877746,0.74306,2691.0,2690.8,3.95089]
[1740400878041,3.64906,2691.0,2690.8,3.9509]
[1740400878550,3.64906,2691.0,2690.9,0.74308]
[1740400879044,2.906,2691.0,2690.9,0.74308]
[1740400879951,1.1287,2691.5,2691.4,0.74294]
[1740400880143,3.4477,2691.5,2691.4,0.74294]
[1740400880748,4.19062,2691.5,2691.3,0.74295]
[1740400881444,3.4477,2691.5,2691.4,0.74294]
[1740400881642,0.5417,2691.5,2691.4,0.74294]
[1740400881843,3.4477,2691.5,2691.4,0.74294]
[1740400882247,3.4477,2691.5,2691.1,3.7765]
[1740400882552,6.6555,2691.5,2690.7,3.2078]
[1740400884050,0.64936217,2691.4,2690.7,3.2078]
[1740400884353,0.05896217,2691.3,2690.7,3.2078]
[1740400885049,3.2078,2691.2,2690.7,3.2078]
[1740400885254,2.906,2691.1,2690.7,3.2078]
[1740400892055,2.906,2691.1,2690.6,3.78207911]
[1740400895257,2.906,2691.1,2690.6,0.57427911]
[1740400895258,3.2667582,2691.0,2690.6,0.57427911]
[1740400895468,0.573,2690.9,2690.6,0.57427911]
[1740400896151,3.2078,2691.0,2690.6,0.57427911]
[1740400898161,2.906,2691.1,2690.6,0.57427911]
[1740400898162,2.906,2690.9,2690.6,0.57427911]
[1740400899563,2.906,2691.0,2690.6,0.57427911]
[1740400899866,3.7808,2691.3,2690.6,0.57427911]
[1740400900055,2.906,2691.0,2690.6,0.57427911]
[1740400902064,3.7808,2691.3,2690.6,0.57427911]
[1740400902263,2.96498006,2691.2,2690.9,3.2078]
[1740400902571,2.906,2691.3,2691.0,0.547]
[1740400902862,2.907,2691.4,2691.1,0.5418]
[1740400903064,2.907,2691.4,2691.1,1.1298]
[1740400903264,2.907,2691.3,2691.1,1.1298]
[1740400905353,2.906,2691.3,2691.1,1.1298]
[1740400905753,2.906,2691.6,2691.2,3.2078]
[1740400905966,2.906,2691.7,2691.3,0.545]
[1740400906269,2.906,2691.8,2691.3,0.545]
[1740400906757,2.906,2691.7,2691.3,0.545]
[1740400908467,0.00557911,2691.9,2691.5,3.2078]
[1740400908670,0.00557911,2691.9,2691.6,0.5525]
[1740400908876,0.00557911,2691.9,2691.7,0.5409]
[1740400913267,0.00557911,2691.9,2691.6,0.5525]
[1740400916984,0.00557911,2691.9,2691.8,3.2078]
[1740400924886,0.00557911,2691.9,2691.6,0.5525]
[1740400925190,0.00557911,2691.9,2690.6,0.00557911]
[1740400925191,1.70537911,2691.9,2691.4,3.2078]
[1740400925890,3.2078,2691.8,2691.0,3.2078]
[1740400926088,0.05896892,2691.7,2691.0,3.2078]
[1740400926286,0.74295,2691.4,2691.2,0.74298]
[1740400926591,0.5513,2691.3,2691.2,0.74298]
[1740400928693,3.4563,2691.3,2691.2,0.74298]
[1740400929484,4.19927,2691.3,2691.1,0.743]
[1740400929791,4.0052,2691.3,2691.2,0.74299]
[1740400931195,4.0052,2691.3,2690.8,41.3787]
[1740400934991,3.2078,2691.2,2690.8,41.3787]
[1740400935189,3.2078,2690.9,2690.6,0.00557911]
[1740400935389,0.5708,2690.8,2690.6,0.00557911]
[1740400935692,0.5621,2690.7,2690.6,0.00557911]
[1740400935891,0.62106861,2690.7,2690.6,0.00557911]
[1740400937093,0.62106861,2690.7,2690.6,0.74873911]
[1740400937094,0.62106729,2690.7,2690.6,0.74873911]
[1740400938495,3.82886729,2690.7,2690.6,0.74873911]
[1740400940093,3.82886729,2690.7,2690.6,0.00557911]
[1740400941598,1.1357,2690.8,2690.6,0.00557911]
[1740400941599,2.906,2690.8,2690.6,0.00557911]
[1740400941800,2.906,2690.8,2690.7,3.2078]
[1740400942096,2.906,2690.8,2690.7,3.7989]
[1740400942297,2.906,2690.8,2690.6,0.00557911]
[1740400943100,0.5855,2690.7,2690.6,0.00557911]
[1740400945600,3.2078,2691.0,2690.6,0.00557911]
[1740400945902,2.906,2690.8,2690.6,0.00557911]
[1740400949299,0.5503,2690.7,2690.6,0.00557911]
[1740400951301,2.906,2690.8,2690.6,0.00557911]
[1740400951505,2.906,2690.7,2690.6,0.00557911]
[1740400953801,2.96494843,2690.7,2690.6,0.00557911]
[1740400953998,6.17274843,2690.7,2690.6,0.00557911]
[1740400954202,6.17274843,2690.7,2690.2,0.5776]
[1740400954398,3.2078,2690.4,2690.2,0.5776]
[1740400954600,2.906,2690.3,2690.2,0.5776]
[1740400955907,3.65134341,2690.3,2690.2,0.5776]
[1740400960106,3.71029037,2690.3,2690.1,0.5773]
[1740400960302,3.65134341,2690.3,2690.1,0.5773]
[1740400961309,3.65134341,2690.3,2690.0,0.00557911]
[1740400961703,3.2078,2690.1,2690.0,0.00557911]
[1740400962504,0.74534341,2690.2,2690.0,0.00557911]
[1740400962705,3.65134341,2690.3,2690.0,0.00557911]
[1740400966613,0.0589378,2690.2,2690.0,0.00557911]
[1740400966813,3.65134341,2690.3,2690.0,0.00557911]
[1740400967017,0.05893747,2690.2,2690.0,0.00557911]
[1740400967215,3.65134341,2690.3,2690.0,0.00557911]
[1740400967413,0.05893767,2690.2,2690.0,0.00557911]
[1740400968713,3.65134341,2690.3,2690.0,0.00557911]
[1740400969124,0.74534341,2690.3,2690.0,3.21337911]
[1740400969522,2.987,2690.4,2690.0,3.21337911]
[1740400969721,2.987,2690.4,2690.3,3.2078]
[1740400970117,0.00557911,2690.5,2690.4,0.74322]
[1740400970422,3.2078,2691.1,2691.0,0.74305]
[1740400970616,6.17275699,2691.1,2691.0,0.74305]
[1740400970815,0.74305,2691.0,2690.9,1.31476]
[1740400971215,0.802006,2691.0,2690.9,0.5717]
[1740400971416,0.058956,2691.0,2690.9,0.5717]
[1740400971616,0.058956,2691.0,2690.9,1.31478]
[1740400971820,6.1138,2691.1,2691.0,0.74305]
[1740400972026,6.17275656,2691.1,2691.0,0.74305]
[1740400972517,6.1138,2691.1,2691.0,0.74305]
[1740400972722,6.17275675,2691.1,2691.0,0.74305]
[1740400973222,6.17275698,2691.1,2691.0,0.74305]
[1740400973712,6.17275698,2691.1,2691.0,0.5466]
[1740400973915,6.17275698,2691.1,2691.0,1.28965]
[1740400974121,6.17275698,2691.1,2691.0,0.5466]
[1740400976421,6.17275522,2691.1,2691.0,0.5466]
[1740400976627,6.1727537,2691.1,2691.0,0.5466]
[1740400977330,2.9649537,2691.1,2691.0,0.5466]
[1740400979632,3.705239,2691.1,2691.0,0.5466]
[1740400981628,3.6463144,2691.1,2691.0,0.5466]
[1740400981933,3.70523812,2691.1,2691.0,0.5466]
[1740400982127,3.6463144,2691.1,2691.0,0.5466]
[1740400982323,3.6463144,2691.1,2691.0,1.1275]
[1740400982830,0.7403144,2691.1,2691.0,1.1275]
[1740400983036,0.00557911,2691.2,2691.0,1.1275]
[1740400983237,0.00557911,2691.2,2691.0,0.5466]
[1740400983637,3.21337911,2691.2,2691.0,0.5466]
[1740400984137,3.95369351,2691.2,2691.0,0.5466]
[1740400984543,0.00557911,2691.2,2691.0,1.1275]
[1740400987541,0.00557911,2691.2,2691.0,0.5466]
[1740400987745,0.00557911,2691.2,2690.9,0.5717]
[1740400989039,0.74491679,2691.2,2690.6,1.7104]
[1740400989540,0.05891084,2691.1,2690.6,1.7104]
[1740400989841,0.74491679,2691.2,2690.6,1.7104]
[1740400990045,0.5843,2691.0,2690.6,1.7104]
[1740400990344,2.906,2690.9,2690.6,1.7104]
[1740400991638,2.906,2690.9,2690.6,1.1232]
[1740400992037,3.2078,2690.7,2690.3,0.5771]
[1740400992238,3.2078,2690.7,2690.1,1.1324]
[1740400992447,0.0588979,2690.6,2690.1,0.5612]
[1740400992738,3.2078,2690.4,2690.0,0.00557911]
[1740400992940,3.2078,2690.1,2690.0,0.00557911]
[1740400993137,2.905,2690.1,2690.0,0.74890911]
[1740400993333,2.905,2690.1,2690.0,0.00557911]
[1740400993637,2.905,2690.1,2690.0,0.74890911]
[1740400993833,3.64433768,2690.1,2690.0,0.74890911]
[1740400994339,3.64433768,2690.1,2690.0,0.00557911]
[1740400994645,4.38763768,2690.1,2690.0,0.00557911]
[1740400995335,3.64433768,2690.1,2690.0,0.00557911]
[1740400995933,3.70323912,2690.1,2690.0,0.00557911]
[1740400996133,4.44653912,2690.1,2690.0,0.00557911]
[1740400996336,3.70720144,2690.1,2690.0,0.00557911]
[1740400996744,2.96389856,2690.1,2689.6,0.74342]
[1740400996941,3.2078,2689.9,2689.7,0.7434]
[1740400997133,3.95116,2689.9,2689.7,0.7434]
[1740400997540,0.7434,2689.8,2689.5,0.74344]
[1740400997739,2.906,2689.7,2689.5,0.74344]
[1740400998143,2.906,2689.7,2689.4,3.21337911]
[1740401001245,0.00557911,2689.8,2689.4,3.21337911]
[1740401001549,2.906,2689.7,2689.4,3.21337911]
[1740401002445,0.00557911,2689.8,2689.4,3.21337911]
[1740401002649,2.906,2689.7,2689.4,3.21337911]
[1740401002841,0.00557911,2689.8,2689.4,3.21337911]
[1740401003043,2.906,2689.7,2689.4,3.21337911]
[1740401003750,0.00557911,2689.8,2689.4,3.21337911]
[1740401004048,2.906,2689.7,2689.4,3.21337911]
[1740401004346,0.00557911,2689.8,2689.4,0.00557911]
[1740401004543,2.906,2689.6,2689.4,0.00557911]
[1740401005253,0.5816,2689.5,2689.4,0.00557911]
[1740401005556,0.64049611,2689.5,2689.4,0.00557911]
[1740401007344,0.64049497,2689.5,2689.4,0.00557911]
[1740401007945,0.0588949,2689.5,2689.4,0.00557911]
[1740401008147,2.906,2689.5,2689.4,0.00557911]
[1740401008345,2.96489546,2689.5,2689.4,0.00557911]
[1740401010946,2.9648939,2689.5,2689.4,0.00557911]
[1740401011752,8.9648939,2689.5,2688.7,4.9709]
[1740401011950,3.2078,2689.1,2688.7,4.9709]
[1740401012157,2.907,2689.0,2688.7,4.9709]
[1740401012451,3.4577,2689.0,2688.7,4.9709]
[1740401013253,3.4577,2689.0,2688.7,4.3871]
[1740401013454,3.4577,2689.0,2688.7,1.1793]
[1740401014357,3.4577,2689.0,2688.7,1.7622]
[1740401015048,2.907,2689.0,2688.7,1.7622]
[1740401018553,2.907,2689.1,2688.7,4.97]
[1740401019255,2.907,2689.1,2688.7,1.7622]
[1740401020052,2.907,2689.1,2688.7,4.97]
[1740401020756,2.907,2689.1,2688.7,1.7622]
[1740401022858,6.1148,2689.1,2688.7,1.7622]
[1740401023652,3.2078,2688.8,2688.6,0.00557911]
[1740401023859,2.907,2688.7,2688.6,0.00557911]
[1740401024060,3.55578704,2688.7,2688.6,0.00557911]
[1740401024757,4.23681986,2688.7,2688.6,0.00557911]
[1740401025060,3.64691986,2688.7,2688.6,0.00557911]
[1740401025654,2.907,2688.7,2688.6,0.00557911]
[1740401026559,2.96588722,2688.7,2688.6,0.00557911]
[1740401026758,3.70571639,2688.7,2688.6,0.00557911]
[1740401028455,3.64683086,2688.7,2688.6,0.00557911]
[1740401028664,0.79871491,2688.7,2688.6,0.00557911]
[1740401028868,0.73983086,2688.7,2688.6,0.00557911]
[1740401029065,2.907,2688.9,2688.6,0.00557911]
[1740401029257,3.2078,2688.8,2688.6,0.00557911]
[1740401029456,3.94763086,2688.8,2688.6,0.00557911]
[1740401029859,0.05888556,2688.7,2688.6,0.00557911]
[1740401031168,0.05888556,2688.7,2688.1,1.1304]
[1740401031359,3.2078,2688.5,2688.1,1.1709]
[1740401031558,3.4444,2688.4,2688.1,1.1709]
[1740401032863,2.907,2688.4,2688.1,1.1709]
[1740401033165,2.907,2688.4,2688.1,4.3787]
[1740401033362,2.907,2688.4,2688.1,1.1709]
[1740401035363,2.907,2688.4,2688.1,0.5878]
[1740401035569,1.1578,2688.3,2688.0,0.00371]
[1740401035769,0.5932,2688.2,2688.0,0.00371]
[1740401037370,2.91257911,2688.4,2688.0,0.00371]
[1740401038873,0.05887488,2688.3,2688.0,0.00371]
[1740401039074,0.62137488,2688.3,2688.0,0.00371]
[1740401039377,0.5549,2688.2,2688.0,0.00371]
[1740401041377,2.16e-06,2688.3,2688.0,3.21151]
[1740401041579,2.16e-06,2688.3,2688.1,0.5803]
[1740401041778,0.00557911,2688.4,2688.1,0.5803]
[1740401046784,3.21337911,2688.4,2688.0,0.00371]
[1740401046980,0.0588805,2688.3,2688.0,0.00371]
[1740401047186,3.76647911,2688.4,2688.0,0.00371]
[1740401049789,0.05888003,2688.3,2688.0,0.00371]
[1740401050684,3.2078,2688.1,2688.0,0.00371]
[1740401050877,6.1178,2688.1,2688.0,0.00371]
[1740401051280,2.91,2688.1,2688.0,0.00371]
[1740401051491,3.63423001,2688.1,2688.0,0.00371]
[1740401065690,3.69311041,2688.1,2688.0,0.00371]
[1740401069197,9.69311041,2688.1,2686.9,0.586]
[1740401069398,3.2078,2687.2,2686.9,0.586]
[1740401069601,2.908,2687.2,2686.9,0.586]
[1740401070297,2.908,2687.2,2686.8,1.1528]
[1740401070500,6.1158,2687.2,2686.8,1.1528]
[1740401070996,0.72423001,2687.1,2686.8,1.1528]
[1740401072090,3.2078,2686.9,2686.8,1.1528]
[1740401072297,3.2078,2686.9,2686.8,0.5702]
[1740401072500,3.2078,2686.9,2686.4,0.5594]
[1740401072798,2.908,2686.8,2686.4,1.1517]
[1740401074098,3.4567,2686.8,2686.4,1.1517]
[1740401078603,4.5809,2686.8,2686.4,1.1517]
[1740401079401,3.2078,2686.5,2686.4,0.5923]
[1740401083296,3.2078,2686.5,2686.0,4.3021]
[1740401083501,2.909,2686.4,2686.1,0.5723]
[1740401087505,2.909,2686.3,2686.1,0.5723]
[1740401091205,4.8807,2686.8,2686.1,0.5723]
[1740401091400,0.05889963,2686.7,2686.1,0.5723]
[1740401091605,3.2078,2686.8,2686.2,3.2078]
[1740401091805,2.909,2686.7,2686.6,3.2078]
[1740401092211,2.91457911,2686.9,2686.6,3.2078]
[1740401092412,2.91457911,2686.9,2686.7,1.7167]
[1740401094614,0.00557911,2686.9,2686.7,1.7167]
[1740401096917,9.11e-06,2686.9,2686.7,1.7167]
[1740401098019,2.90900911,2686.9,2686.7,0.579]
[1740401101021,2.90900911,2686.9,2686.5,0.00557]
[1740401101319,1.097,2686.8,2686.5,0.54747]
[1740401101722,2.90900911,2686.9,2686.5,0.54747]
[1740401101916,9.11e-06,2686.9,2686.6,3.765]
[1740401102521,9.11e-06,2686.9,2686.7,40.8]
[1740401104324,9.11e-06,2686.9,2686.7,46.8]
[1740401104523,9.11e-06,2686.9,2686.7,6.0]
[1740401105221,9.11e-06,2686.9,2686.8,0.74421]
[1740401105728,9.11e-06,2686.9,2686.8,6.74421]
[1740401106523,2.54e-06,2687.4,2687.3,0.74407]
[1740401106821,6.1168,2688.2,2688.1,0.74385]
[1740401107319,0.5695,2688.5,2688.0,1.8597]
[1740401107520,2.91,2688.3,2688.2,0.74382]
[1740401107822,0.72822272,2688.5,2688.4,0.74377]
[1740401108118,0.00557911,2688.5,2688.4,0.74377]
[1740401108820,0.54447911,2688.5,2688.4,0.74377]
[1740401113132,0.54447911,2688.5,2688.2,0.5387]
[1740401115328,0.00557911,2688.5,2688.2,0.5387]
[1740401115531,0.00557911,2688.5,2688.3,3.2078]
[1740401115826,0.00557911,2688.5,2688.4,1.1254]
[1740401119438,9.11e-06,2688.5,2688.4,1.1254]
[1740401119737,9.11e-06,2688.5,2688.4,10.0794]
[1740401120040,9.11e-06,2688.5,2688.4,12.9864]
[1740401120238,9.11e-06,2688.5,2688.4,53.7864]
[1740401124842,9.11e-06,2688.5,2688.4,50.8324]
[1740401126141,9.11e-06,2688.5,2688.4,1.1254]
[1740401127345,9.11e-06,2688.5,2688.4,7.1254]
[1740401127753,9.11e-06,2688.5,2688.4,1.1254]
[1740401128051,9.11e-06,2688.5,2688.4,7.1254]
[1740401128244,9.11e-06,2688.5,2688.4,1.1254]
[1740401128450,9.11e-06,2688.5,2688.4,7.1254]
[1740401130751,9.11e-06,2688.5,2688.4,11.8514]
[1740401132152,9.11e-06,2688.5,2688.4,5.8514]
[1740401132642,9.11e-06,2688.5,2688.4,46.6514]